fUSD/lending_fUSD_20240322
["ID","MTS","AMOUNT","RATE_DAILY","PERIOD"]
[320057757,1711121444269,-2393.06490202,0.00021,2]
[320057758,1711121444310,-851.46564454,0.00021,2]
[320057759,1711121445366,-167460.88257292,0.00021,2]
[320057801,1711121446550,-323.64473252,0.00020999,2]
[320057803,1711121446559,-4087.57063562,0.00021,2]
[320057805,1711121446573,-393.32714988,0.00021,2]
[320057807,1711121446586,-609.89,0.00021,2]
[320057809,1711121446599,-3329.99785433,0.00021,2]
[320057812,1711121446680,-12540.07567904,0.00021,2]
[320057814,1711121446693,-1712.50198109,0.00021,2]
[320057816,1711121446705,-22695.93714416,0.00021,2]
[320057824,1711121446784,-31713.35521211,0.00021,2]
[320058035,1711121448958,-485.29999995,0.00021,2]
[320058065,1711122441180,-746.39451856,0.00016982,2]
[320058066,1711122441203,-193.64578564,0.00016983,2]
[320058067,1711122441222,-1547.10322734,0.00016983,2]
[320058068,1711122441242,-1000.0,0.00017,2]
[320058069,1711122441264,-305.79,0.00017633,2]
[320058070,1711122441284,-200.0,0.00019157,2]
[320058071,1711122441305,-1149.45,0.00019325,2]
[320058072,1711122441327,-150.0,0.00019382,2]
[320058073,1711122441347,-150.0,0.00019479,2]
[320058074,1711122441373,-160.03,0.00019519,2]
[320058075,1711122441395,-602.48,0.00019551,2]
[320058076,1711122441415,-445.17249158,0.00019553,2]
[320058077,1711122441435,-150.0,0.00019554,2]
[320058078,1711122441456,-4351.13329912,0.00019555,2]
[320058079,1711122556112,-235.01017711,0.00017599,2]
[320058080,1711122557131,-31.20582413,0.00017599,2]
[320058081,1711122557151,-1547.10322734,0.0001951,2]
[320058082,1711122557173,-19932.03,0.00019511,2]
[320058083,1711122557194,-245.24540545,0.00019554,2]
[320058084,1711122557214,-11479.75254308,0.00019555,2]
[320058086,1711122598935,290.5,0.0001747,2]
[320058089,1711122631490,-1550.0,0.00019,3]
[320058090,1711122631500,-250.0,0.00019343,2]
[320058091,1711122631509,-156.0,0.00019365,2]
[320058092,1711122631519,-2820.19312476,0.00019456,2]
[320058094,1711122631528,-1024.09618522,0.00019456,2]
[320058096,1711122631537,-297.15446891,0.00019456,2]
[320058097,1711122631548,-159.34,0.00019545,2]
[320058098,1711122631557,-159.34,0.00019545,2]
[320058099,1711122631567,-159.34,0.00019545,2]
[320058100,1711122631576,-159.34,0.00019545,2]
[320058101,1711122631586,-806.04078144,0.00019554,2]
[320058102,1711122631596,-21234.62193719,0.00019555,2]
[320058103,1711122632217,-1032.73592212,0.00019555,2]
[320058104,1711122632295,-24344.8547977,0.00019555,2]
[320058105,1711122632305,-24044.21820226,0.00019555,2]
[320058106,1711122632316,-320.174128,0.00019555,2]
[320058107,1711122632328,-305.177,0.00019555,2]
[320058108,1711122632393,-611.97438854,0.00019555,2]
[320058109,1711122632537,-1058.16627474,0.00019555,2]
[320058150,1711122637443,-363.22524147,0.00019554,2]
[320058152,1711122637452,-500.0,0.00019554,2]
[320058154,1711122637462,-500.0,0.00019554,2]
[320058156,1711122637471,-557.65168773,0.00019554,2]
[320058158,1711122637480,-182.5018242,0.00019554,2]
[320058160,1711122637490,-317.4981758,0.00019554,2]
[320058162,1711122637499,-364.62483818,0.00019554,2]
[320058164,1711122637507,-500.0,0.00019554,2]
[320058166,1711122637516,-500.0,0.00019554,2]
[320058168,1711122637525,-222.87693602,0.00019554,2]
[320058170,1711122637536,-416.76621786,0.00019554,2]
[320058172,1711122637548,-500.0,0.00019554,2]
[320058174,1711122637557,-500.0,0.00019554,2]
[320058176,1711122637566,-475.03296595,0.00019554,2]
[320058178,1711122637578,-24.96703405,0.00019554,2]
[320058180,1711122637587,-500.0,0.00019554,2]
[320058182,1711122637596,-500.0,0.00019554,2]
[320058184,1711122637605,-500.0,0.00019554,2]
[320058186,1711122637615,-343.97439893,0.00019554,2]
[320058188,1711122637624,-240743.36471948,0.00019555,2]
[320058204,1711122637780,-2235.66313192,0.00019555,2]
[320058207,1711122637792,-865.3525,0.00019555,2]
[320058213,1711122637821,-212392.45485141,0.00019555,2]
[320058216,1711122637833,-639.49262913,0.00019555,2]
[320058329,1711122638589,-3542.35264901,0.00019555,2]
[320058331,1711122638602,-656.36656359,0.00019555,2]
[320058333,1711122638613,-282.48007,0.00019555,2]
[320058335,1711122638625,-85324.42544269,0.00019555,2]
[320058336,1711122638645,-17178.87694517,0.00019555,2]
[320058337,1711122638657,-849.20089223,0.00019555,2]
[320058338,1711122638669,-1991.03704535,0.00019555,2]
[320058339,1711122638681,-505.090632,0.00019555,2]
[320058340,1711122638692,-4610.32143468,0.00019555,2]
[320058341,1711122638705,-2402.21791729,0.00019555,2]
[320058423,1711122639546,-2335.86722163,0.00019555,2]
[320058425,1711122639568,-1959.52999834,0.00019555,2]
[320058429,1711122639592,-351.46398261,0.00019555,2]
[320058459,1711122639889,-1056.59615103,0.00019555,2]
[320058461,1711122639902,-2396.01460452,0.00019555,2]
[320058464,1711122639914,-94425.4000953,0.00019555,2]
[320058469,1711122639957,-617.9778247,0.00019555,2]
[320058472,1711122639968,-28840.73451674,0.00019555,2]
[320058477,1711122640013,-63884.22175972,0.00019555,2]
[320058480,1711122640025,-1279.58614481,0.00019555,2]
[320058483,1711122640044,-281.72,0.00019555,2]
[320058727,1711122642443,-3024.05048001,0.00019555,2]
[320058729,1711122642455,-4145.84348455,0.00019555,2]
[320058731,1711122642467,-3181.55354912,0.00019555,2]
[320058734,1711122642484,-250.0,0.00019555,2]
[320058741,1711122642534,-327.64786755,0.00019555,2]
[320058743,1711122642547,-2076.40959962,0.00019555,2]
[320058757,1711122642667,-1661.60734328,0.00019555,2]
[320058765,1711122642736,-23120.90542646,0.00019555,2]
[320058770,1711122642776,-965.634495,0.00019554,2]
[320058772,1711122642789,-29.93817266,0.00019554,2]
[320058774,1711122642799,-117830.48571097,0.00019555,2]
[320058777,1711122642814,-1010.81047456,0.00019555,2]
[320058784,1711122642872,-3898.26590367,0.00019555,2]
[320058792,1711122642936,-7146.85354648,0.00019555,2]
[320058797,1711122642977,-15942.75,0.00019555,2]
[320058799,1711122642990,-42063.81517057,0.00019555,2]
[320058801,1711122643001,-22364.05336677,0.00019556,2]
[320058803,1711122643011,-154.51,0.00019635,10]
[320058805,1711122643021,-150.99,0.00019635,2]
[320058807,1711122643030,-150.99,0.00019635,2]
[320058808,1711122643040,-875.2,0.00019652,2]
[320058809,1711122643049,-250.0,0.0001968,2]
[320058810,1711122643062,-290.5,0.00019734,2]
[320058811,1711122643072,-5366.45,0.00019769,2]
[320058812,1711122643082,-2820.19312467,0.00019779,2]
[320058813,1711122643091,-2690.67,0.00019837,2]
[320058814,1711122643101,-499.99,0.00019837,2]
[320058815,1711122643112,-1044.94,0.00019897,2]
[320058816,1711122643123,-159.34,0.0001999,2]
[320058817,1711122643133,-1274.13928624,0.0002,3]
[320058818,1711122643143,-590.61224363,0.0002,2]
[320058819,1711122643153,-500.02947809,0.0002,2]
[320058820,1711122643163,-1755.61791887,0.0002,2]
[320058821,1711122643173,-286.93726099,0.0002,2]
[320058822,1711122643183,-5000.0,0.0002,2]
[320058823,1711122643193,-854.24216831,0.0002,2]
[320058824,1711122643203,-159.07,0.00020019,2]
[320058825,1711122643213,-3174.0,0.000201,2]
[320058826,1711122643222,-789.0,0.000201,2]
[320058827,1711122643232,-2820.19312467,0.00020101,2]
[320058828,1711122643241,-182.39,0.00020123,2]
[320058829,1711122643251,-1024.09618515,0.00020367,2]
[320058830,1711122643261,-2820.19312467,0.00020424,2]
[320058831,1711122643271,-297.15446888,0.00020442,2]
[320058832,1711122643280,-336.458074,0.00020548,2]
[320058833,1711122643290,-150.0,0.00020587,2]
[320058834,1711122643300,-1254.85065382,0.00020674,2]
[320058835,1711122643314,-2100.0,0.000207,7]
[320058836,1711122643324,-2820.19312467,0.00020746,2]
[320058837,1711122643333,-768.11,0.00020763,3]
[320058838,1711122643343,-14372.51641376,0.00020773,2]
[320058839,1711122643352,-1000.0,0.00020779,2]
[320058840,1711122643363,-7199.61319834,0.00020783,5]
[320058841,1711122643373,-296.74441516,0.00020788,2]
[320058842,1711122643383,-20065.33502043,0.0002079,2]
[320058844,1711122643393,-20065.33502039,0.0002079,2]
[320058846,1711122643403,-3842.53620361,0.0002079,2]
[320058848,1711122643412,-3842.53620353,0.0002079,2]
[320058850,1711122643422,-238.3665,0.00020799,2]
[320058852,1711122643432,-2879.2408,0.00020799,2]
[320058854,1711122643446,-95634.533,0.00020799,2]
[320058857,1711122643456,-4200.0,0.000208,7]
[320058859,1711122643465,-159.34,0.00020889,2]
[320058861,1711122643475,-13427.05185526,0.0002089,2]
[320058863,1711122643484,-1022.3519,0.00020899,2]
[320058865,1711122643494,-88432.8275,0.00020899,2]
[320058867,1711122643503,-2728.0101,0.00020899,2]
[320058869,1711122643513,-6300.0,0.000209,7]
[320058871,1711122643524,-292.21,0.00020922,2]
[320058873,1711122643533,-154.84903838,0.00020936,2]
[320058875,1711122643543,-159.34,0.00020989,2]
[320058877,1711122643554,-159.34,0.0002099,2]
[320058879,1711122643564,-159.34,0.0002099,2]
[320058881,1711122643574,-205.4134644,0.00020998,2]
[320058883,1711122643584,-217.6816873,0.00020998,7]
[320058885,1711122643594,-155.0,0.00020998,2]
[320058888,1711122643604,-3843.36723217,0.00020998,2]
[320058890,1711122643614,-613.55627316,0.00020998,2]
[320058892,1711122643624,-205.06000324,0.00020998,2]
[320058894,1711122643633,-1247.90893269,0.00020998,2]
[320058896,1711122643643,-155.36878202,0.00020998,2]
[320058898,1711122643653,-155.15011316,0.00020998,2]
[320058900,1711122643663,-11202.33377342,0.00020998,2]
[320058901,1711122643672,-172.64397972,0.00020998,2]
[320058902,1711122643682,-189.92890188,0.00020998,2]
[320058903,1711122643693,-200.0,0.00020999,2]
[320058904,1711122643705,-200.0,0.00020999,2]
[320058905,1711122643716,-200.0,0.00020999,2]
[320058906,1711122643726,-200.0,0.00020999,2]
[320058907,1711122643736,-200.0,0.00020999,2]
[320058908,1711122643746,-158.0,0.00020999,2]
[320058909,1711122643756,-1251.84359666,0.00020999,2]
[320058910,1711122643765,-18312.90743656,0.00020999,2]
[320058911,1711122643779,-96843.69980053,0.00020999,2]
[320058912,1711122643789,-1029.18721227,0.00020999,2]
[320058913,1711122643800,-962.36349289,0.00020999,2]
[320058914,1711122643814,-321.72947893,0.00020999,2]
[320058915,1711122643824,-500.0,0.00020999,2]
[320058917,1711122643834,-500.0,0.00020999,2]
[320058919,1711122643844,-500.0,0.00020999,2]
[320058921,1711122643853,-500.0,0.00020999,2]
[320058923,1711122643863,-500.0,0.00020999,2]
[320058925,1711122643872,-500.0,0.00020999,2]
[320058927,1711122643881,-500.0,0.00020999,2]
[320058929,1711122643891,-500.0,0.00020999,2]
[320058931,1711122643900,-500.0,0.00020999,2]
[320058933,1711122643919,-500.0,0.00020999,2]
[320058934,1711122643930,-500.0,0.00020999,2]
[320058935,1711122643940,-500.0,0.00020999,2]
[320058936,1711122643950,-500.0,0.00020999,2]
[320058937,1711122643960,-500.0,0.00020999,2]
[320058938,1711122643970,-500.0,0.00020999,2]
[320058939,1711122643979,-353.32,0.00020999,2]
[320058940,1711122643990,-496047.78831431,0.00021,2]
[320058941,1711122644018,-2432.01062279,0.00021,2]
[320058994,1711122645582,-2976.15624937,0.00019553,2]
[320058995,1711122645592,-16650.82367295,0.00021,2]
[320058996,1711122645605,-595.019566,0.00021,2]
[320058997,1711122645653,-304.35748785,0.00021,2]
[320058998,1711122645666,-8975.0992448,0.00021,2]
[320058999,1711122645676,-2000.0,0.00021,2]
[320059000,1711122645685,-200.0,0.00021,2]
[320059001,1711122645695,-450.0,0.00021,2]
[320059002,1711122645706,-1894.43240806,0.00021,2]
[320059003,1711122645715,-1000.0,0.00021,2]
[320059004,1711122645726,-2000.0,0.00021,2]
[320059005,1711122645738,-3000.0,0.00021,2]
[320059006,1711122645748,-1600.0,0.00021,3]
[320059007,1711122645758,-2167.29303812,0.00021042,2]
[320059008,1711122645768,-2820.19312467,0.00021069,2]
[320059009,1711122645778,-1199.56,0.00021096,2]
[320059010,1711122645787,-712.02089859,0.00021147,2]
[320059011,1711122645797,-2000.0,0.0002121,2]
[320059012,1711122645812,-200.0,0.0002121,2]
[320059013,1711122645822,-20065.33502039,0.00021259,2]
[320059014,1711122645832,-3842.53620353,0.00021259,2]
[320059015,1711122645842,-1024.09618515,0.00021277,2]
[320059016,1711122645851,-1254.85065383,0.00021304,2]
[320059017,1711122645861,-415.27,0.00021352,2]
[320059018,1711122645871,-415.27,0.00021352,2]
[320059019,1711122645881,-415.27,0.00021352,2]
[320059020,1711122645890,-415.27,0.00021352,2]
[320059021,1711122645900,-415.27,0.00021352,2]
[320059022,1711122645910,-160.96,0.00021352,2]
[320059023,1711122645919,-336.458074,0.0002137,2]
[320059024,1711122645929,-2820.19312467,0.00021391,2]
[320059026,1711122645938,-2000.0,0.00021422,2]
[320059028,1711122645947,-297.15446888,0.00021428,2]
[320059030,1711122645957,-167.0,0.00021432,2]
[320059032,1711122645966,-237.22,0.00021517,2]
[320059034,1711122645976,-2000.0,0.00021517,2]
[320059036,1711122645986,-1526.29,0.00021517,2]
[320059072,1711122646310,-502.22,0.00021517,2]
[320059074,1711122646322,-8792.67,0.00021517,2]
[320059076,1711122646331,-154.82,0.0002159,2]
[320059078,1711122646341,-2000.0,0.00021636,2]
[320059080,1711122646350,-2820.19312467,0.00021714,2]
[320059082,1711122646360,-154.82,0.00021745,2]
[320059084,1711122646370,-2000.0,0.00021853,2]
[320059086,1711122646379,-154.82,0.00021899,2]
[320059088,1711122646389,-250.0,0.00021918,2]
[320059090,1711122646398,-887.19,0.00021918,10]
[320059092,1711122646407,-415.27,0.00021956,2]
[320059094,1711122646416,-160.3,0.00021979,2]
[320059096,1711122646426,-290.5,0.00021998,2]
[320059098,1711122646435,-780.27085357,0.00022,2]
[320059100,1711122646445,-1000.0,0.00022,2]
[320059102,1711122646455,-2820.19312467,0.00022036,2]
[320059104,1711122646465,-154.82,0.00022053,2]
[320059107,1711122646476,-1149.45,0.00022065,2]
[320059109,1711122646486,-875.2,0.00022109,2]
[320059110,1711122646496,-800.0,0.00022137,2]
[320059113,1711122646507,-20065.33502039,0.00022161,2]
[320059115,1711122646517,-3842.53620353,0.00022161,2]
[320059117,1711122646528,-336.458074,0.00022192,2]
[320059119,1711122646538,-154.82,0.00022207,2]
[320059120,1711122646547,-238.41,0.00022272,2]
[320059123,1711122646560,-160.3,0.00022345,2]
[320059124,1711122646570,-2820.19312467,0.00022359,2]
[320059126,1711122646582,-154.82,0.00022361,2]
[320059129,1711122646592,-297.15446888,0.00022414,2]
[320059131,1711122646602,-1000.0,0.00022466,2]
[320059133,1711122646612,-7500.0,0.00022466,2]
[320059135,1711122646622,-1379.0,0.00022479,2]
[320059138,1711122646647,-2563.0,0.00022479,2]
[320059140,1711122646656,-960.0,0.00022479,2]
[320059142,1711122646666,-1226.0,0.00022479,2]
[320059143,1711122646676,-457.0,0.00022479,2]
[320059145,1711122646685,-536.0,0.00022479,2]
[320059147,1711122646695,-1265.0,0.00022479,2]
[320059149,1711122646705,-603.0,0.00022479,2]
[320059152,1711122646716,-278.0,0.00022479,2]
[320059154,1711122646726,-1251.0,0.00022479,2]
[320059155,1711122646737,-450.0,0.00022479,2]
[320059158,1711122646750,-1460.0,0.00022479,2]
[320059159,1711122646759,-1624.0,0.00022479,2]
[320059162,1711122646769,-3241.175,0.00022479,2]
[320059164,1711122646778,-2445.0,0.00022479,2]
[320059166,1711122646788,-1045.0,0.00022479,2]
[320059168,1711122646798,-200.0,0.00022485,2]
[320059170,1711122646810,-154.82,0.00022516,2]
[320059171,1711122646819,-1234.0,0.00022566,2]
[320059174,1711122646830,-156.0,0.00022592,2]
[320059176,1711122646840,-154.82,0.0002267,2]
[320059178,1711122646849,-2820.19312467,0.00022681,2]
[320059180,1711122646859,-160.3,0.00022712,2]
[320059181,1711122646869,-1000.0,0.00023,2]
[320059184,1711122646878,-47280.78198064,0.00023,7]
[320059186,1711122646892,-13388.21801936,0.00023,7]
[320059188,1711122646903,-550.0,0.00023,7]
[320059190,1711122646912,-489.78,0.00023,2]
[320059192,1711122646922,-1000.0,0.00023,2]
[320059194,1711122646932,-1650.0,0.00023,3]
[320059196,1711122646941,-2820.19312467,0.00023004,2]
[320059198,1711122646951,-336.458074,0.00023014,2]
[320059201,1711122646961,-166.66666666,0.00023036,2]
[320059203,1711122646970,-622.33545203,0.00023047,2]
[320059204,1711122646983,-214.56454797,0.00023047,2]
[320059206,1711122646993,-20065.33502039,0.00023063,2]
[320059207,1711122647002,-3842.53620353,0.00023063,2]
[320059209,1711122647014,-160.3,0.00023078,2]
[320059211,1711122647023,-154.62857147,0.00023084,2]
[320059213,1711122647033,-246.48891994,0.00023091,2]
[320059215,1711122647043,-246.48891994,0.00023109,2]
[320059217,1711122647053,-246.48891994,0.0002313,2]
[320059219,1711122647067,-177.13775767,0.00023147,2]
[320059221,1711122647076,-439.32878778,0.00023222,2]
[320059223,1711122647085,-164.18707762,0.00023264,2]
[320059225,1711122647095,-439.32878778,0.00023284,2]
[320059227,1711122647104,-200.0,0.00023311,2]
[320059229,1711122647114,-200.0,0.00023311,2]
[320059231,1711122647125,-800.0,0.00023311,2]
[320059233,1711122647134,-800.0,0.00023311,2]
[320059235,1711122647143,-500.0,0.00023311,2]
[320059237,1711122647152,-200.0,0.00023311,2]
[320059239,1711122647161,-200.0,0.00023312,2]
[320059241,1711122647171,-800.0,0.00023312,2]
[320059243,1711122647180,-500.0,0.00023312,2]
[320059245,1711122647191,-200.0,0.00023312,2]
[320059247,1711122647200,-2820.19312467,0.00023326,2]
[320059249,1711122647210,-161.83340678,0.00023337,2]
[320059251,1711122647220,-154.02591387,0.00023384,2]
[320059253,1711122647229,-745.7933639,0.00023386,2]
[320059255,1711122647239,-168.51980138,0.00023391,2]
[320059257,1711122647249,-297.15446888,0.000234,2]
[320059259,1711122647258,-181.31584347,0.000234,2]
[320059261,1711122647268,-4860.6698258,0.000234,2]
[320059263,1711122647277,-161.83340678,0.00023421,2]
[320059265,1711122647287,-439.32878778,0.0002343,2]
[320059267,1711122647297,-168.51980138,0.00023465,2]
[320059269,1711122647310,-150.0,0.00023466,2]
[320059271,1711122647320,-150.0,0.00023466,2]
[320059273,1711122647330,-150.0,0.00023466,2]
[320059275,1711122647339,-558.0,0.0002348,2]
[320059277,1711122647348,-159.94999475,0.00023486,2]
[320059279,1711122647358,-197.81426473,0.00023495,2]
[320059281,1711122647367,-155.93625809,0.00023495,2]
[320059283,1711122647377,-1000.0,0.00023495,2]
[320059285,1711122647387,-199.45935512,0.00023495,2]
[320059287,1711122647397,-200.0,0.00023495,2]
[320059289,1711122647407,-155.0,0.00023495,3]
[320059291,1711122647417,-6312.35071515,0.00023495,2]
[320059293,1711122647427,-934.95908804,0.00023495,2]
[320059295,1711122647436,-164.96805019,0.00023495,2]
[320059297,1711122647446,-403.5154761,0.00023495,2]
[320059299,1711122647456,-5507.51645168,0.00023495,2]
[320059301,1711122647466,-155.0,0.00023498,2]
[320059303,1711122647476,-1564.96654558,0.00023499,2]
[320059305,1711122647487,-150.01,0.00023499,2]
[320059307,1711122647496,-24953.218245,0.000235,2]
[320059311,1711122647533,-483.7090386,0.000235,2]
[320059312,1711122649633,-704.6,0.000235,2]
[320059313,1711122649649,-31883.76566172,0.000235,2]
[320059314,1711122649660,-4481.46949273,0.000235,2]
[320059315,1711122649694,-462.31814606,0.000235,2]
[320059316,1711122649706,-6747.4017599,0.000235,2]
[320059317,1711122649721,-6379.68,0.000235,2]
[320059318,1711122649767,-427.88654011,0.000235,2]
[320059319,1711122649779,-644.04999999,0.000235,2]
[320059320,1711122671214,31410.128,0.00018,2]
[320059321,1711122676031,689.01938916,0.00025801,30]
[320059322,1711122676918,1506.17687921,0.00017851,2]
[320059323,1711122689330,507.09526845,0.00025801,30]
[320059324,1711122691506,486.30645879,0.00025801,30]
[320059326,1711122694730,602.84745721,0.00025801,120]
[320059328,1711122717461,639.60768006,0.00025801,120]
[320059330,1711122729263,202.24775817,0.00025801,120]
[320059338,1711122859800,230.89337612,0.000135,2]
[320059339,1711122866654,2000.0,0.000164,30]
[320059340,1711122868912,2000.0,0.000192,30]
[320059341,1711122869495,2000.0,0.000219,30]
[320059342,1711122890453,10821.95102404,0.000219,30]
[320059343,1711122906044,669.74017982,0.000219,30]
[320059350,1711123227632,2000.0,0.000164,30]
[320059351,1711123228479,1000.0,0.000192,30]
[320059352,1711123229826,1000.0,0.000219,30]
[320059353,1711123275257,-806.04078144,0.00016903,2]
[320059354,1711123275279,-289.09,0.00016904,2]
[320059355,1711123275299,-300.0,0.00017899,2]
[320059356,1711123275323,-150.0,0.00017899,2]
[320059357,1711123275343,-9697.227,0.000179,2]
[320059358,1711123275364,-640.06011578,0.000179,2]
[320059359,1711123275385,-331.923,0.000179,2]
[320059360,1711123275404,-32038.7681,0.000179,2]
[320059361,1711123275424,-2500.0,0.000179,2]
[320059362,1711123275443,-820.186,0.000179,2]
[320059363,1711123275463,-987.06759372,0.000179,2]
[320059364,1711123275482,-424.25275734,0.00017989,2]
[320059365,1711123275502,-4697.47901234,0.00017998,2]
[320059366,1711123275522,-280.4640909,0.00017998,2]
[320059367,1711123275548,-164.61589807,0.00017998,2]
[320059368,1711123275570,-1061.18364021,0.00017998,2]
[320059369,1711123275591,-235.01017711,0.00017998,2]
[320059370,1711123275611,-733.51974371,0.00017998,2]
[320059371,1711123275630,-1238.94442072,0.00017999,2]
[320059372,1711123275651,-5504.16766866,0.00018,2]
[320059373,1711123483035,1670.0,0.00016801,2]
[320059374,1711123541154,-806.04078144,0.00017899,2]
[320059375,1711123541181,-640.75431453,0.000179,2]
[320059376,1711123541205,-26032.58351758,0.00018,2]
[320059377,1711123626185,-274.63,0.00016825,2]
[320059378,1711123626208,-806.04078144,0.00016999,2]
[320059379,1711123626230,-19666.01550526,0.00017,5]
[320059380,1711123749137,-806.04078144,0.00016999,2]
[320059381,1711123749161,-8875.89958302,0.00017,5]
[320059382,1711123749183,-937.71421411,0.000179,2]
[320059383,1711123749207,-15970.95661139,0.00017998,2]
[320059384,1711123751392,-2596.93773356,0.00017998,2]
[320059385,1711123755121,-4920.01422415,0.00017998,2]
[320059386,1711123755142,-249.95358599,0.00017999,2]
[320059387,1711123755166,-61319.27218986,0.00018,2]
[320059388,1711123764384,-6990.7475,0.00018,2]
[320059393,1711123831606,-580.76993526,0.00017999,2]
[320059394,1711123831677,-225.27084618,0.00017999,2]
[320059395,1711123831686,-413.59915382,0.00018,2]
[320059396,1711123831698,-12765.04532822,0.00018,2]
[320059397,1711123831710,-1580.61,0.00018,2]
[320059398,1711123831721,-1129.09873036,0.00018,2]
[320059399,1711123831732,-274.56731202,0.00018,2]
[320059400,1711123831756,-4435.90215138,0.00018,2]
[320059401,1711123831772,-551.24148495,0.00018,2]
[320059402,1711123831784,-10214.89490945,0.00018,2]
[320059403,1711123831985,-111008.2042897,0.00018,2]
[320059405,1711123831996,-452.29749972,0.00018,2]
[320059408,1711123832005,-27713.67516,0.00018,2]
[320059410,1711123832020,-274.79608514,0.00018,2]
[320059449,1711123837958,-9724.17098629,0.00018,2]
[320059450,1711123837988,-17448.75857103,0.00018,2]
[320059451,1711123838007,-63799.99999999,0.00018,2]
[320059452,1711123838020,-713.43182916,0.00018,2]
[320059454,1711123838049,-41469.1853277,0.00018,2]
[320059456,1711123838061,-783.45476951,0.00018,2]
[320059459,1711123838076,-86794.84887211,0.00018,2]
[320059460,1711123838089,-608.43,0.00018353,2]
[320059462,1711123838098,-285.14,0.00018577,2]
[320059464,1711123838107,-499.99,0.00018577,2]
[320059466,1711123838118,-937.6,0.00018736,2]
[320059469,1711123838127,-174.84,0.00018736,2]
[320059470,1711123838136,-337.26,0.00018826,2]
[320059473,1711123838146,-391.97,0.00018923,2]
[320059474,1711123838155,-1195.48,0.00018923,2]
[320059476,1711123838164,-417.68,0.0001894,2]
[320059478,1711123838174,-250.0,0.00018968,2]
[320059480,1711123838183,-1550.0,0.00019,3]
[320059482,1711123838192,-156.0,0.00019012,2]
[320059484,1711123838202,-250.0,0.00019021,2]
[320059486,1711123838211,-640.06011571,0.00019033,2]
[320059488,1711123838221,-274.63,0.00019088,2]
[320059490,1711123838229,-363.23746396,0.00019178,2]
[320059492,1711123838239,-3843.36723217,0.000192,2]
[320059494,1711123838249,-1553.26277413,0.00019455,2]
[320059501,1711123838307,-1959.24282587,0.00019455,2]
[320059503,1711123838317,-4519.1495,0.00019455,2]
[320059505,1711123838326,-214.87821335,0.00019472,2]
[320059507,1711123838335,-427.10826655,0.00019554,2]
[320059509,1711123838344,-27848.73119893,0.00019555,2]
[320059512,1711123838355,-422.40982061,0.00019555,2]
[320059514,1711123838367,-1203.88782761,0.00019555,2]
[320059535,1711123838671,-4733.50636248,0.00019555,2]
[320059537,1711123838683,-638.24848553,0.00019555,2]
[320059549,1711123838790,-404557.81077755,0.00019555,2]
[320059555,1711123838836,-3053.26429036,0.00019555,2]
[320059559,1711123838862,-267.84,0.00019555,2]
[320059830,1711123841798,-607.12236691,0.000179,2]
[320059831,1711123842013,-331.3617791,0.000179,2]
[320059832,1711123842033,-3660.0,0.000179,2]
[320059834,1711123842076,-1324.00957452,0.000179,2]
[320059835,1711123842089,-19146.04966624,0.000179,2]
[320059836,1711123842122,-17172.5127544,0.000179,2]
[320059837,1711123842134,-405.0578,0.000179,2]
[320059838,1711123842146,-372.50946649,0.000179,2]
[320059839,1711123842159,-15987.67679234,0.000179,2]
[320059840,1711123842168,-120537.34698146,0.00019555,2]
[320059841,1711123842182,-1180.12402552,0.00019555,2]
[320059842,1711123842195,-484.29600592,0.00019555,2]
[320059843,1711123842233,-4534.98122466,0.00019555,2]
[320059847,1711123842348,-381.465084,0.00019555,2]
[320059860,1711123842698,-19065.9,0.00019555,2]
[320059861,1711123842711,-20118.99285395,0.00019555,2]
[320059862,1711123842721,-159.15,0.00019571,2]
[320059863,1711123842731,-1500.0,0.000198,7]
[320059864,1711123842741,-3000.0,0.000199,7]